bitfinex/quotes_BTCUSD_20241004
["timestamp","ask_amount","ask_price","bid_price","bid_amount"]
[1728061318331,0.167361,62359.0,62358.0,0.00157655]
[1728061319280,0.4078651,62359.0,62358.0,0.00157655]
[1728061319485,0.49638229,62359.0,62358.0,0.00157655]
[1728061319849,0.49438229,62359.0,62358.0,0.00157655]
[1728061320094,0.43885411,62359.0,62358.0,0.00157655]
[1728061320320,0.167361,62359.0,62358.0,0.00157655]
[1728061320572,0.007,62359.0,62358.0,0.16194055]
[1728061320778,0.007,62359.0,62358.0,0.33304055]
[1728061321243,0.003,62359.0,62358.0,0.33304055]
[1728061321474,0.003,62359.0,62358.0,0.35213978]
[1728061321685,0.02596364,62364.0,62363.0,0.160351]
[1728061321942,0.02596364,62364.0,62363.0,0.256451]
[1728061323036,0.000821,62376.0,62363.0,0.1789]
[1728061323306,0.2405041,62373.0,62372.0,0.160328]
[1728061323716,0.000821,62376.0,62366.0,0.320683]
[1728061323949,0.000821,62376.0,62365.0,0.0993]
[1728061323950,0.161141,62376.0,62371.0,0.160329]
[1728061324407,0.320643,62375.0,62366.0,0.320685]
[1728061324639,0.16033,62372.0,62369.0,0.160335]
[1728061324870,0.320672,62369.0,62365.0,0.0993]
[1728061325072,0.160339,62368.0,62365.0,0.259645]
[1728061325279,0.160343,62367.0,62365.0,0.0993]
[1728061325738,0.32068,62368.0,62365.0,0.0993]
[1728061325938,0.34448132,62366.0,62365.0,0.0993]
[1728061326353,0.34448132,62366.0,62365.0,0.1033]
[1728061326559,0.34448132,62366.0,62365.0,0.0993]
[1728061327839,0.34630232,62366.0,62365.0,0.0993]
[1728061328070,0.162164,62366.0,62365.0,0.0993]
[1728061328294,0.1863063,62366.0,62365.0,0.0993]
[1728061328533,0.000821,62366.0,62365.0,0.259646]
[1728061329155,0.000821,62366.0,62365.0,0.342746]
[1728061329826,0.000821,62366.0,62365.0,0.343746]
[1728061330068,0.0007306,62366.0,62365.0,0.343746]
[1728061330285,0.0007306,62366.0,62365.0,0.345746]
[1728061330712,0.0007306,62366.0,62365.0,0.343746]
[1728061331011,0.0007306,62366.0,62365.0,0.35096231]
[1728061331210,0.0017306,62366.0,62365.0,0.36296231]
[1728061331449,0.0027306,62366.0,62365.0,0.37596231]
[1728061334240,0.0278702,62366.0,62365.0,0.37596231]
[1728061337727,0.0278702,62366.0,62365.0,0.21561631]
[1728061337987,0.1882132,62366.0,62365.0,0.03321631]
[1728061338245,0.23155896,62366.0,62365.0,0.03321631]
[1728061338568,0.3112132,62366.0,62365.0,0.025]
[1728061338983,0.3876132,62366.0,62365.0,0.025]
[1728061339215,0.160361,62359.0,62358.0,0.00157655]
[1728061339457,0.34449932,62359.0,62358.0,0.00157655]
[1728061341853,0.34449932,62359.0,62358.0,0.00457655]
[1728061342583,0.0258702,62366.0,62361.0,0.320712]
[1728061342811,0.1862142,62366.0,62362.0,0.160351]
[1728061343057,0.0258702,62366.0,62362.0,0.320707]
[1728061343290,0.160346,62365.0,62362.0,0.160353]
[1728061343767,0.160354,62362.0,62361.0,0.0985]
[1728061344020,0.320693,62365.0,62358.0,0.00457655]
[1728061344021,0.18413832,62363.0,62358.0,0.00457655]
[1728061344241,0.160359,62360.0,62358.0,0.00457655]
[1728061344457,0.160357,62361.0,62358.0,0.16493955]
[1728061344669,0.16036,62360.0,62358.0,0.00457655]
[1728061344922,0.320709,62362.0,62358.0,0.16193955]
[1728061344923,0.160358,62361.0,62358.0,0.16193955]
[1728061345410,0.320711,62362.0,62358.0,0.00157655]
[1728061345630,0.34449932,62359.0,62358.0,0.00157655]
[1728061346104,0.36749932,62359.0,62358.0,0.00157655]
[1728061346391,0.46749932,62359.0,62358.0,0.00157655]
[1728061346863,0.46949932,62359.0,62358.0,0.00357655]
[1728061347293,0.46949932,62359.0,62358.0,0.00157655]
[1728061347760,0.46949932,62359.0,62358.0,0.00257655]
[1728061347761,0.48049932,62359.0,62358.0,0.00257655]
[1728061347984,0.64368603,62359.0,62358.0,0.00257655]
[1728061348714,0.64368603,62359.0,62358.0,0.00557655]
[1728061348905,0.48049932,62359.0,62358.0,0.00257655]
[1728061349138,0.47949932,62359.0,62358.0,0.00257655]
[1728061349590,0.48349932,62359.0,62358.0,0.00157655]
[1728061350018,0.47749932,62359.0,62358.0,0.00257655]
[1728061350228,0.49149932,62359.0,62358.0,0.00157655]
[1728061350907,0.47749932,62359.0,62358.0,0.00157655]
[1728061351325,0.47949932,62359.0,62358.0,0.00157655]
[1728061351748,0.48949932,62359.0,62358.0,0.00257655]
[1728061351957,0.47949932,62359.0,62358.0,0.00157655]
[1728061352165,0.65598225,62359.0,62358.0,0.00257655]
[1728061352419,0.50349932,62359.0,62358.0,0.00257655]
[1728061352664,0.48349932,62359.0,62358.0,0.00157655]
[1728061352943,0.47949932,62359.0,62358.0,0.00257655]
[1728061353156,0.61360026,62359.0,62358.0,0.00257655]
[1728061353388,0.48849932,62359.0,62358.0,0.00257655]
[1728061353614,0.47949932,62359.0,62358.0,0.00257655]
[1728061353849,0.48249932,62359.0,62358.0,0.00157655]
[1728061354543,0.298361,62359.0,62358.0,0.00157655]
[1728061354738,0.72278603,62359.0,62358.0,0.00157655]
[1728061355035,0.185374,62354.0,62353.0,0.001642]
[1728061355250,0.46752532,62349.0,62348.0,8.36513589]
[1728061355481,0.54662532,62349.0,62348.0,8.36513589]
[1728061355704,0.59656387,62349.0,62348.0,8.35179785]
[1728061356155,0.59656387,62349.0,62348.0,8.16231136]
[1728061356362,0.62172183,62349.0,62348.0,8.16231136]
[1728061356596,0.63172183,62349.0,62348.0,8.16231136]
[1728061356855,0.64572183,62349.0,62348.0,8.16231136]
[1728061357067,0.63572183,62349.0,62348.0,8.16231136]
[1728061357291,0.64972183,62349.0,62348.0,8.16231136]
[1728061357976,0.59778328,62349.0,62348.0,8.16231136]
[1728061358662,0.58378328,62349.0,62348.0,8.16231136]
[1728061359118,0.56978328,62349.0,62348.0,8.16231136]
[1728061359346,0.58578328,62349.0,62348.0,8.16231136]
[1728061360334,0.58578328,62349.0,62348.0,7.00016871]
[1728061360335,0.85528738,62349.0,62348.0,7.00016871]
[1728061360560,5.83296999,62349.0,62348.0,6.73303772]
[1728061360794,5.83096999,62349.0,62348.0,6.73303772]
[1728061361025,5.83096999,62349.0,62348.0,6.57264772]
[1728061361318,5.83096999,62349.0,62348.0,6.44571039]
[1728061361562,5.99996999,62349.0,62348.0,6.31321223]
[1728061361782,5.98796999,62349.0,62348.0,6.31321223]
[1728061362005,5.98796999,62349.0,62348.0,6.15282223]
[1728061362256,6.02396999,62349.0,62348.0,6.15282223]
[1728061362470,6.00996999,62349.0,62348.0,6.15282223]
[1728061362702,6.01196999,62349.0,62348.0,6.15282223]
[1728061362919,5.67978328,62349.0,62348.0,5.59603058]
[1728061363197,2.10778328,62349.0,62348.0,5.59603058]
[1728061363884,2.10778328,62349.0,62348.0,5.59767258]
[1728061364092,2.11278328,62349.0,62348.0,5.59767258]
[1728061364774,1.66994091,62349.0,62348.0,5.59767258]
[1728061365004,1.06194091,62349.0,62348.0,5.59767258]
[1728061365451,1.20712762,62349.0,62348.0,5.59767258]
[1728061365712,1.20712762,62349.0,62348.0,5.43728258]
[1728061365944,1.23512762,62349.0,62348.0,5.43728258]
[1728061366158,1.24412762,62349.0,62348.0,5.43728258]
[1728061366857,1.23412762,62349.0,62348.0,5.43728258]
[1728061367504,1.62194091,62349.0,62348.0,5.43728258]
[1728061368386,1.58278328,62349.0,62348.0,5.39049041]
[1728061368605,1.59678328,62349.0,62348.0,5.18047076]
[1728061368813,1.58278328,62349.0,62348.0,5.14839276]
[1728061369021,1.59278328,62349.0,62348.0,5.08423676]
[1728061369231,1.78396999,62349.0,62348.0,5.02008076]
[1728061369704,1.95296999,62349.0,62348.0,4.98049053]
[1728061369935,1.95296999,62349.0,62348.0,4.26330888]
[1728061369936,1.92496999,62349.0,62348.0,4.26330888]
[1728061370171,1.93896999,62349.0,62348.0,3.89108891]
[1728061370398,1.95296999,62349.0,62348.0,3.89108891]
[1728061370611,1.95296999,62349.0,62348.0,3.86708891]
[1728061370819,2.30296999,62349.0,62348.0,3.83501091]
[1728061371039,2.30296999,62349.0,62348.0,3.73877691]
[1728061371690,2.32812974,62349.0,62348.0,3.70669891]
[1728061371915,2.32812974,62349.0,62348.0,3.67462091]
[1728061372123,2.32812974,62349.0,62348.0,3.54630891]
[1728061373005,2.32812974,62349.0,62348.0,2.98951726]
[1728061373227,2.31412974,62349.0,62348.0,2.89328326]
[1728061373476,2.31412974,62349.0,62348.0,2.82912726]
[1728061373896,1.96412974,62349.0,62348.0,2.79704926]
[1728061374108,1.96412974,62349.0,62348.0,2.76497126]
[1728061374532,1.96412974,62349.0,62348.0,2.66873726]
[1728061374955,1.97812974,62349.0,62348.0,2.60458126]
[1728061375170,1.97812974,62349.0,62348.0,2.57250326]
[1728061375915,1.97895074,62349.0,62348.0,2.39275236]
[1728061376143,1.97895074,62349.0,62348.0,2.30756631]
[1728061377211,2.32895074,62349.0,62348.0,2.24341031]
[1728061378308,2.32895074,62349.0,62348.0,2.21133231]
[1728061378309,2.30379099,62349.0,62348.0,2.21133231]
[1728061378525,2.30379099,62349.0,62348.0,2.14717631]
[1728061379195,1.95379099,62349.0,62348.0,2.08302031]
[1728061379426,1.95379099,62349.0,62348.0,2.05094231]
[1728061379638,1.95379099,62349.0,62348.0,1.98678631]
[1728061380726,1.62160428,62349.0,62348.0,1.98678631]
[1728061380951,1.59860428,62349.0,62348.0,1.98678631]
[1728061381407,2.01926742,62349.0,62348.0,0.92827353]
[1728061381634,1.76760428,62349.0,62348.0,0.92827353]
[1728061381902,1.57060428,62349.0,62348.0,0.92827353]
[1728061382263,1.55560428,62349.0,62348.0,0.92827353]
[1728061382479,0.21436596,62349.0,62348.0,1.02807353]
[1728061382697,0.20036596,62349.0,62348.0,1.02807353]
[1728061382908,0.05397896,62349.0,62348.0,1.02807353]
[1728061383159,0.03997896,62349.0,62348.0,1.02807353]
[1728061383883,0.33073,62358.0,62348.0,0.92827353]
[1728061383884,0.2405041,62356.0,62348.0,0.92827353]
[1728061384115,0.2405041,62356.0,62349.0,0.099]
[1728061384116,0.02515231,62353.0,62349.0,0.099]
[1728061384340,0.160383,62351.0,62349.0,0.099]
[1728061384791,0.18552931,62353.0,62349.0,0.099]
[1728061385004,0.18552931,62353.0,62349.0,0.085]
[1728061385005,0.02515147,62351.0,62349.0,0.085]
[1728061385214,0.02515147,62351.0,62349.0,0.081]
[1728061385670,0.02815147,62351.0,62349.0,0.081]
[1728061385889,0.02515147,62351.0,62349.0,0.081]
[1728061386301,0.02715147,62351.0,62349.0,0.081]
[1728061386531,0.02515147,62351.0,62349.0,0.081]
[1728061386758,0.02515231,62353.0,62351.0,0.236381]
[1728061386984,0.12515231,62353.0,62351.0,0.076]
[1728061387672,0.12597331,62353.0,62351.0,0.076]
[1728061388112,0.02597331,62353.0,62351.0,0.076]
[1728061388317,0.02597331,62353.0,62352.0,0.0902]
[1728061388549,0.05112251,62353.0,62352.0,0.0902]
[1728061388814,0.01,62358.0,62357.0,0.160366]
[1728061389030,0.2405041,62370.0,62362.0,0.333154]
[1728061389488,0.2405041,62370.0,62365.0,0.160346]
[1728061389700,0.2405041,62370.0,62365.0,0.337646]
[1728061390335,0.2405041,62370.0,62365.0,0.1773]
[1728061390561,0.2405041,62370.0,62365.0,0.337646]
[1728061391290,0.2405041,62370.0,62365.0,0.1773]
[1728061391524,0.160339,62368.0,62365.0,0.1773]
[1728061391739,0.5611741,62370.0,62365.0,0.1773]
[1728061391740,0.0027306,62366.0,62365.0,0.2013]
[1728061391965,0.28821738,62366.0,62365.0,0.2013]
[1728061392186,0.28621738,62366.0,62365.0,0.1773]
[1728061392403,0.12587438,62366.0,62365.0,0.1793]
[1728061392635,0.12587438,62366.0,62365.0,0.1823]
[1728061392849,0.02587438,62366.0,62365.0,0.340646]
[1728061393075,0.0027306,62366.0,62365.0,0.337646]
[1728061393301,0.0007306,62366.0,62365.0,0.1773]
[1728061393516,0.0007306,62366.0,62365.0,0.337646]
[1728061393734,0.0027306,62366.0,62365.0,0.337646]
[1728061393972,0.0027306,62366.0,62365.0,0.1773]
[1728061394186,0.0027306,62366.0,62365.0,0.337646]
[1728061394431,0.0027306,62366.0,62365.0,0.1773]
[1728061394877,0.0027306,62366.0,62365.0,0.1803]
[1728061395150,0.0007306,62366.0,62365.0,0.1803]
[1728061395411,0.0007306,62366.0,62365.0,0.1823]
[1728061396094,0.1610736,62366.0,62365.0,0.1823]
[1728061396785,0.1610736,62366.0,62365.0,0.1803]
[1728061397022,0.0017306,62366.0,62365.0,0.1803]
[1728061397472,0.1570736,62366.0,62365.0,0.1803]
[1728061397703,0.1570736,62366.0,62365.0,0.1773]
[1728061397923,0.1,62368.0,62365.0,0.1773]
[1728061398416,0.5619511,62378.0,62367.0,0.16034]
[1728061398417,0.184141,62376.0,62367.0,0.16034]
[1728061398644,0.184141,62376.0,62365.0,0.36143832]
[1728061398645,0.005,62366.0,62365.0,0.52278432]
[1728061398906,0.007,62366.0,62365.0,0.52278432]
[1728061399139,0.002,62368.0,62367.0,0.160341]
[1728061399369,0.000821,62376.0,62368.0,0.160337]
[1728061399837,0.002821,62376.0,62367.0,0.34447632]
[1728061400064,0.100821,62376.0,62368.0,0.160337]
[1728061400340,0.000821,62376.0,62375.0,0.18413832]
[1728061400572,0.000821,62376.0,62375.0,0.0947]
[1728061401940,0.001821,62376.0,62375.0,0.0947]
[1728061402162,0.000821,62376.0,62375.0,0.0947]
[1728061402633,0.001821,62376.0,62375.0,0.0947]
[1728061403333,0.000821,62376.0,62375.0,0.0947]
[1728061403548,0.000821,62376.0,62375.0,0.0967]
[1728061404175,0.251347,62381.0,62375.0,0.0967]
[1728061404453,0.251347,62381.0,62375.0,0.0997]
[1728061404685,0.02513962,62380.0,62375.0,0.0997]
[1728061404921,0.160313,62378.0,62375.0,0.0997]
[1728061405131,0.32062,62379.0,62375.0,0.0967]
[1728061405132,0.160311,62379.0,62375.0,0.0967]
[1728061405349,0.18544762,62380.0,62375.0,0.0947]
[1728061405570,0.02513962,62380.0,62375.0,0.0947]
[1728061406011,0.02513962,62380.0,62377.0,0.32063]
[1728061406462,0.02513962,62380.0,62376.0,0.26393832]
[1728061406907,0.02713962,62380.0,62377.0,0.160314]
[1728061407332,0.02713962,62380.0,62376.0,0.26393832]
[1728061407571,0.02713962,62380.0,62377.0,0.160314]
[1728061407802,0.02713962,62380.0,62376.0,0.26393832]
[1728061408071,0.02513962,62380.0,62376.0,0.42425532]
[1728061408306,0.1,62383.0,62376.0,0.42425532]
[1728061408539,0.002,62380.0,62378.0,0.160312]
[1728061408771,0.002,62380.0,62376.0,0.26993832]
[1728061408772,0.002,62380.0,62377.0,0.160314]
[1728061409599,0.1,62383.0,62377.0,0.160314]
[1728061409810,0.001,62380.0,62378.0,0.168311]
[1728061410070,0.001,62380.0,62379.0,0.16031]
[1728061410285,0.001,62380.0,62378.0,0.168311]
[1728061410524,0.001,62380.0,62378.0,0.008]
[1728061410737,0.001,62380.0,62377.0,0.158314]
[1728061411181,0.2405041,62385.0,62378.0,0.160312]
[1728061411410,0.001,62380.0,62377.0,0.008]
[1728061411625,0.0271372,62380.0,62377.0,0.009]
[1728061412041,0.0269582,62380.0,62377.0,0.005]
[1728061412256,0.0269582,62380.0,62378.0,0.001]
[1728061412700,0.0269582,62380.0,62378.0,0.161311]
[1728061412914,0.0269582,62380.0,62377.0,0.005]
[1728061413128,0.0269582,62380.0,62377.0,0.171313]
[1728061413579,0.0269582,62380.0,62379.0,0.16031]
[1728061413798,0.0269582,62380.0,62379.0,0.25621]
[1728061414047,0.0269582,62380.0,62379.0,0.33751]
[1728061414832,0.0259582,62380.0,62379.0,0.52164832]
[1728061415493,0.0259582,62380.0,62379.0,0.52864832]
[1728061418108,0.0259582,62380.0,62379.0,0.1842]
[1728061418351,0.000821,62380.0,62379.0,0.1842]
[1728061418948,0.000821,62380.0,62379.0,0.19234395]
[1728061420770,0.000821,62380.0,62379.0,0.53679227]
[1728061425494,0.000821,62380.0,62379.0,0.53079227]
[1728061425938,0.001821,62380.0,62379.0,0.54179227]
[1728061426164,0.002821,62380.0,62379.0,0.55079227]
[1728061427613,0.000821,62391.0,62390.0,0.340682]
[1728061427813,0.000821,62391.0,62390.0,0.52482032]
[1728061428266,4e-05,62400.0,62391.0,0.18011811]
[1728061428478,4e-05,62400.0,62396.0,0.41980432]
[1728061430069,4e-05,62400.0,62396.0,0.41952243]
[1728061430502,0.26563009,62411.0,62404.0,0.160246]
[1728061431420,0.26563009,62411.0,62404.0,0.252446]
[1728061431667,0.2405041,62411.0,62404.0,0.252446]
[1728061431890,0.2405041,62411.0,62404.0,0.0922]
[1728061432339,0.160231,62410.0,62404.0,0.022]
[1728061432758,0.160235,62409.0,62404.0,0.022]
[1728061432970,0.160233,62409.0,62404.0,0.022]
[1728061433210,0.160233,62409.0,62404.0,0.012]
[1728061433429,0.2405041,62411.0,62404.0,0.015]
[1728061433687,0.320464,62410.0,62404.0,0.003]
[1728061433911,0.320464,62410.0,62404.0,0.009]
[1728061434131,0.00082,62412.0,62404.0,0.009]
[1728061434351,0.161047,62412.0,62404.0,0.009]
[1728061434784,0.160228,62411.0,62404.0,0.006]
[1728061435048,0.160228,62411.0,62404.0,0.001]
[1728061435256,0.161046,62412.0,62404.0,0.006]
[1728061435475,0.5609621,62411.0,62404.0,0.006]
[1728061436003,0.0254468,62405.0,62404.0,0.006]
[1728061436651,0.0254468,62405.0,62404.0,0.001]
[1728061436863,0.0254468,62405.0,62404.0,0.004]
[1728061437574,0.05057716,62405.0,62404.0,0.004]
[1728061438210,0.02545036,62405.0,62404.0,0.004]
[1728061438855,0.02545036,62405.0,62404.0,0.164246]
[1728061439904,0.02545036,62405.0,62404.0,0.17213911]
[1728061440148,0.02545036,62405.0,62404.0,0.35005722]
[1728061442864,0.02545036,62405.0,62404.0,0.34933911]
[1728061443110,0.02545036,62405.0,62404.0,0.36033911]
[1728061443583,0.02545036,62405.0,62404.0,0.37233911]
[1728061443809,0.02545036,62405.0,62404.0,0.40948511]
[1728061444020,0.02545036,62405.0,62404.0,0.39748511]
[1728061444452,0.000821,62416.0,62411.0,0.34436632]
[1728061444708,0.000821,62416.0,62411.0,0.51296632]
[1728061446047,0.000821,62416.0,62411.0,0.52496632]
[1728061446526,0.000821,62416.0,62411.0,0.56210023]
[1728061447277,0.000821,62416.0,62411.0,0.57510023]
[1728061447937,0.05082,62412.0,62411.0,0.57510023]
[1728061448165,0.05082,62412.0,62411.0,0.53796632]
[1728061448392,0.05082,62412.0,62411.0,0.31467164]
[1728061448634,0.05082,62412.0,62411.0,0.277828]
[1728061448867,0.05082,62412.0,62411.0,0.025]
[1728061449535,0.05082,62412.0,62411.0,0.185228]
[1728061449759,0.05082,62412.0,62411.0,0.43586632]
[1728061449992,0.05082,62412.0,62411.0,0.53106632]
[1728061450254,0.05082,62412.0,62411.0,0.53078443]
[1728061450713,0.05082,62412.0,62411.0,0.51606632]
[1728061450951,0.05082,62412.0,62411.0,0.52006632]
[1728061451171,0.05082,62412.0,62411.0,0.35983832]
[1728061451386,0.05082,62412.0,62411.0,0.51906632]
[1728061451616,0.05082,62412.0,62411.0,0.52006632]
[1728061453823,0.05082,62412.0,62411.0,0.5279713]
[1728061457023,0.05082,62412.0,62411.0,0.4484713]
[1728061457206,0.05082,62412.0,62411.0,0.01190498]
[1728061458425,0.211045,62412.0,62411.0,0.01190498]
[1728061459573,0.211045,62412.0,62411.0,0.00890498]
[1728061460247,0.211045,62412.0,62411.0,0.00862309]
[1728061460886,0.211045,62412.0,62411.0,0.00790498]
[1728061461121,0.297645,62412.0,62411.0,0.00790498]
[1728061461338,0.297645,62412.0,62404.0,0.00164]
[1728061461339,0.160237,62408.0,62404.0,0.00164]
[1728061461565,0.160243,62405.0,62404.0,0.00164]
[1728061461798,0.13242,62412.0,62404.0,0.00164]
[1728061461799,0.160241,62406.0,62404.0,0.00164]
[1728061462022,0.160243,62405.0,62404.0,0.00164]
[1728061462684,0.32047,62409.0,62404.0,0.00164]
[1728061462929,0.320476,62407.0,62404.0,0.00164]
[1728061463173,0.05082,62412.0,62406.0,0.18413832]
[1728061463648,0.05082,62412.0,62404.0,0.161885]
[1728061463649,0.211046,62412.0,62404.0,0.161885]
[1728061463886,0.160228,62411.0,62404.0,0.00164]
[1728061464131,0.18535365,62411.0,62404.0,0.00264]
[1728061464360,0.18535365,62411.0,62404.0,0.00164]
[1728061464653,0.02512565,62411.0,62406.0,0.001]
[1728061464894,0.160231,62410.0,62404.0,0.00164]
[1728061465129,0.02512565,62411.0,62404.0,0.00164]
[1728061465349,0.160239,62407.0,62404.0,0.00164]
[1728061465590,0.320466,62409.0,62404.0,0.00164]
[1728061465591,0.160242,62406.0,62404.0,0.00164]
[1728061465817,0.320466,62409.0,62404.0,0.00164]
[1728061466051,0.160243,62405.0,62404.0,0.00164]
[1728061466509,0.35058565,62411.0,62404.0,0.00164]
[1728061466742,0.160239,62407.0,62404.0,0.00164]
[1728061467400,0.320469,62409.0,62404.0,0.00164]
[1728061467401,0.480703,62409.0,62404.0,0.00164]
[1728061467623,0.16024,62407.0,62404.0,0.00264]
[1728061468101,0.160233,62409.0,62404.0,0.00264]
[1728061468586,0.160236,62408.0,62404.0,0.00164]
[1728061469274,0.163233,62409.0,62404.0,0.00164]
[1728061469952,0.003,62409.0,62404.0,0.00164]
[1728061470180,0.003,62409.0,62404.0,0.00135811]
[1728061470406,0.003,62409.0,62404.0,0.16160311]
[1728061470641,0.003,62409.0,62404.0,0.00135811]
[1728061470778,0.160228,62411.0,62404.0,0.00135811]
[1728061471205,0.05082,62412.0,62410.0,0.18413832]
[1728061471681,0.05082,62412.0,62407.0,0.320472]
[1728061471922,0.05082,62412.0,62401.0,0.18413832]
[1728061472136,0.05082,62412.0,62406.0,0.160239]
[1728061472343,0.05582,62412.0,62405.0,0.2405041]
[1728061472763,0.05082,62412.0,62405.0,0.2405041]
[1728061473094,0.05082,62412.0,62405.0,0.4007461]
[1728061473517,0.05082,62412.0,62405.0,0.160242]
[1728061473723,0.05082,62412.0,62404.0,0.00135811]
[1728061473941,0.160229,62411.0,62404.0,0.00135811]
[1728061474148,0.160229,62411.0,62405.0,0.00164]
[1728061474995,0.160229,62411.0,62405.0,0.00264]
[1728061474996,0.32046,62411.0,62405.0,0.00264]
[1728061475205,0.320458,62411.0,62405.0,0.00264]
[1728061475418,0.160233,62410.0,62405.0,0.00164]
[1728061475841,0.05082,62412.0,62405.0,0.01064]
[1728061476067,0.160228,62411.0,62405.0,0.170882]
[1728061476243,0.160228,62411.0,62405.0,0.165882]
[1728061476506,0.160228,62411.0,62405.0,0.00564]
[1728061477183,0.05082,62412.0,62410.0,0.2405041]
[1728061477398,0.05082,62412.0,62411.0,0.160228]
[1728061477610,0.05082,62412.0,62411.0,0.34436632]
[1728061478039,0.05082,62412.0,62411.0,0.160228]
[1728061479414,0.05082,62412.0,62411.0,0.162228]
[1728061480250,0.05082,62412.0,62411.0,0.16194611]
[1728061481517,0.07594374,62412.0,62411.0,0.16194611]
[1728061482380,0.07594374,62412.0,62411.0,0.002]
[1728061482709,0.05082,62412.0,62411.0,0.002]
[1728061484267,0.05082,62412.0,62411.0,0.162228]
[1728061484701,0.05082,62412.0,62410.0,0.16023]
[1728061484946,0.05082,62412.0,62411.0,0.00796455]
[1728061485216,0.05082,62412.0,62411.0,0.006]
[1728061485445,0.05082,62412.0,62411.0,0.004]
[1728061485682,0.05082,62412.0,62408.0,0.0994]
[1728061485901,0.05082,62412.0,62410.0,0.006]
[1728061486140,0.05082,62412.0,62411.0,0.160228]
[1728061486350,0.05082,62412.0,62408.0,0.60400632]
[1728061486588,0.05082,62412.0,62411.0,0.160228]
[1728061486840,0.05082,62412.0,62411.0,0.164228]
[1728061487064,0.05082,62412.0,62411.0,0.166228]
[1728061487321,0.05082,62412.0,62411.0,0.4858321]
[1728061487598,0.000821,62416.0,62415.0,0.160217]
[1728061487841,0.000821,62416.0,62415.0,0.327317]
[1728061488078,0.000821,62416.0,62415.0,0.34560603]
[1728061488980,0.000821,62416.0,62415.0,0.327317]
[1728061489481,0.000821,62416.0,62415.0,0.52964348]
[1728061489724,0.001821,62416.0,62415.0,0.55764348]
[1728061489964,0.001821,62416.0,62415.0,0.46235532]
[1728061490200,0.001821,62416.0,62415.0,0.46207343]
[1728061490434,0.001821,62416.0,62415.0,0.028]
[1728061490647,0.001821,62416.0,62415.0,0.188217]
[1728061490864,0.001821,62416.0,62415.0,0.174217]
[1728061490865,0.000821,62416.0,62415.0,0.174217]
[1728061491092,0.000821,62416.0,62415.0,0.171217]
[1728061491440,0.000821,62416.0,62415.0,0.185217]
[1728061491593,0.000821,62416.0,62415.0,0.174217]
[1728061491828,0.000821,62416.0,62415.0,0.165217]
[1728061492070,0.000821,62416.0,62415.0,0.34435532]
[1728061492289,0.000821,62416.0,62415.0,0.35835532]
[1728061492755,0.000821,62416.0,62415.0,0.34435532]
[1728061492976,0.000821,62416.0,62415.0,0.35335532]
[1728061494106,0.000821,62416.0,62415.0,0.36135532]
[1728061494320,0.000821,62416.0,62415.0,0.34435532]
[1728061494531,0.000821,62416.0,62415.0,0.46355532]
[1728061494774,0.000821,62416.0,62415.0,0.45355532]
[1728061494994,0.000821,62416.0,62415.0,0.44355532]
[1728061495239,0.000821,62416.0,62415.0,0.45155532]
[1728061495463,0.000821,62416.0,62415.0,0.44355532]
[1728061495681,0.000821,62416.0,62415.0,0.45255532]
[1728061495909,0.000821,62416.0,62415.0,0.46655532]
[1728061496800,0.000821,62416.0,62415.0,0.54405532]
[1728061497019,0.000821,62416.0,62415.0,0.54295803]
[1728061497258,0.001821,62416.0,62415.0,0.54295803]
[1728061497684,0.001821,62416.0,62415.0,0.55695803]
[1728061498128,0.000821,62416.0,62415.0,0.54707868]
[1728061498351,0.001821,62416.0,62415.0,0.55695803]
[1728061498564,0.001821,62416.0,62415.0,0.54295803]
[1728061498780,0.001821,62416.0,62415.0,0.52895803]
[1728061499071,0.002821,62416.0,62415.0,0.54295803]
[1728061499290,0.002821,62416.0,62415.0,0.55695803]
[1728061500237,0.002821,62416.0,62415.0,0.55667614]
[1728061501224,0.0004,62419.0,62418.0,0.23681]
[1728061501473,0.0004,62419.0,62418.0,0.32991]
[1728061501706,1.0,62420.0,62419.0,0.43714532]
[1728061501707,0.44725035,62420.0,62419.0,0.43714532]
[1728061501935,0.44725035,62420.0,62419.0,0.45523949]
[1728061502675,0.44725035,62420.0,62419.0,0.27110117]
[1728061502917,0.44725035,62420.0,62419.0,0.45523949]
[1728061503408,0.44725035,62420.0,62419.0,0.43714532]
[1728061503917,0.44725035,62420.0,62419.0,0.253007]
[1728061504174,0.44725035,62420.0,62419.0,0.59884942]
[1728061504430,0.44725035,62420.0,62419.0,0.35834532]
[1728061504933,0.44725035,62420.0,62419.0,0.014]
[1728061505403,0.44725035,62420.0,62419.0,0.017]
[1728061505625,0.47236985,62420.0,62417.0,0.160212]
[1728061505868,0.47236985,62420.0,62413.0,0.50458032]
[1728061506099,0.47236985,62420.0,62413.0,0.18413832]
[1728061506332,0.47236985,62420.0,62417.0,0.16021]
[1728061506628,0.47236985,62420.0,62414.0,0.320438]
[1728061506881,0.54756985,62420.0,62413.0,0.320444]
[1728061507120,0.70777585,62420.0,62419.0,0.01]
[1728061507547,0.70777585,62420.0,62413.0,0.320445]
[1728061507548,0.54756985,62420.0,62413.0,0.320445]
[1728061507764,0.54756985,62420.0,62411.0,0.2405041]
[1728061507765,0.16021,62418.0,62417.0,0.004]
[1728061507987,0.160208,62419.0,62417.0,0.003]
[1728061508207,0.160207,62419.0,62413.0,0.16022]
[1728061508676,0.160207,62419.0,62414.0,0.160219]
[1728061509374,0.160207,62419.0,62412.0,0.32209]
[1728061509375,0.160223,62413.0,62412.0,0.001642]
[1728061510315,0.160223,62413.0,62412.0,0.00136011]
[1728061510996,0.160223,62413.0,62412.0,0.01436011]
[1728061512574,0.183223,62413.0,62412.0,0.01436011]
[1728061513234,0.183223,62413.0,62412.0,0.00736011]
[1728061513458,0.320416,62419.0,62412.0,0.00136011]
[1728061513684,0.260211,62418.0,62413.0,0.160222]
[1728061513924,0.260211,62418.0,62412.0,0.00336011]
[1728061513925,0.1,62418.0,62412.0,0.00336011]
[1728061514147,0.1,62418.0,62412.0,0.00136011]
[1728061514376,0.1,62418.0,62412.0,0.16158511]
[1728061514377,0.002,62413.0,62412.0,0.16158511]
[1728061515105,0.02512362,62417.0,62412.0,0.17376011]
[1728061515314,0.02512362,62417.0,62416.0,0.34435332]